Cogmind - Beta 16 @@@ ROGUE MODE // 2025.11.11 @ 02:08:58 Player: FAQ Result: Destroyed by X-57 Shotgunner with High-powered Shotgun Performance ------------- Evolutions (3) 1500 Regions Visited (9) 1800 Robots Destroyed (173) 865 Value Destroyed (5527) 5527 Prototype IDs (5) 100 Alien Tech Used (0) 0 Bonus (1284) 1284 TOTAL SCORE: 11076 Bonus ------- High Alert Combat Kills 960 Follower Combat Kills 169 Entered Garrisons 200 Friendly Fire -45 Cogmind --------- Core Integrity 0/700 Matter 221/300 Energy 82/100 System Corruption 10% Temperature Cool (9) Movement Core (850) Ox16 Location -7/Factory Parts ------- > --- POWER (1) -------- (None) > --- PROPULSION (4) --- (None) > --- UTILITY (5) ------ High-capacity Storage Unit Improved Signal Interpreter Improved Light Armor Plating High-powered Tractor Beam > --- WEAPON (3) ------- Advanced Assault Cannon > --- INVENTORY (20) --- Advanced Heat Sink High-capacity Matter Pod (0) Improved Sensor Array Improved Signal Interpreter Launcher Guidance Computer Relay Coupler [NC] (31) Relay Coupler [Sentry] (23) Relay Coupler [Hunter] (13) Relay Coupler [Behemoth] (11) Improved Field Recycling Unit (0) Remote Datajack Great Axe Peak State ------------ > --- POWER ------------ Light Nuclear Core > --- PROPULSION ------- Light Treads Improved Treads Improved Treads Medium Treads > --- UTILITY ---------- High-capacity Storage Unit Improved Sensor Array Improved Signal Interpreter Makeshift Transmission Jammer Hardened Medium Armor Plating > --- WEAPON ----------- Heavy Assault Rifle Enhanced Autogun Advanced Assault Cannon > --- INVENTORY -------- Light Nuclear Core Light Treads Light Treads Compact Wheel Advanced Heat Sink High-capacity Matter Pod Improved Signal Interpreter Launcher Guidance Computer Improved Light Armor Plating Relay Coupler [NC] Relay Coupler [Sentry] Relay Coupler [Hunter] Relay Coupler [Behemoth] High-powered Tractor Beam High-powered Tractor Beam Improved Field Recycling Unit Advanced Assault Cannon Missile Launcher Remote Datajack Great Axe [Rating: 43] Favorites ----------- Power Nuclear Core Engine Ion Engine Power Core Nuclear Core Propulsion Improved Treads Treads Improved Treads Wheel Compact Wheel Utility High-capacity Storage Unit Device Shield Generator Storage High-capacity Storage Unit Processor Improved Signal Interpreter Protection Hardened Medium Armor Plating Weapon Improved Light Cannon Energy Gun Medium Laser Ballistic Gun Improved Assault Rifle Ballistic Cannon Improved Light Cannon Launcher Mini Grenade Launcher Impact Weapon Heavy Hammer Slashing Weapon Makeshift Axe Special Melee Weapon Datajack Build | -11 -10 -9 -9 -9 -8 -8 -8 -8 -7 ------- Run | Yrd Mat Mat Min Exi Min Mat Gar Mat Fac Slots Evolved 6 | . . 2 . . . 2 . . 2 Power . | . . . . . . . . . . Propulsion 2 | . . 1 . . . . . . 1 Utility 3 | . . 1 . . . 2 . . . Weapon 1 | . . . . . . . . . 1 Parts Attached 84 | 6 12 8 3 3 3 18 8 12 11 Power 10 | 1 3 . . 1 . 2 1 1 1 Engine 5 | 1 3 . . 1 . . . . . Core 5 | . . . . . . 2 1 1 1 Reactor . | . . . . . . . . . . Propulsion 21 | 2 3 3 . 1 . 5 1 3 3 Treads 19 | 2 3 2 . 1 . 4 1 3 3 Leg . | . . . . . . . . . . Wheel 2 | . . 1 . . . 1 . . . Hover . | . . . . . . . . . . Flight . | . . . . . . . . . . Utility 26 | 1 3 2 1 . 1 8 4 2 4 Device 10 | . 1 . . . 1 4 . 2 2 Storage 5 | 1 2 1 . . . 1 . . . Processor 1 | . . . . . . 1 . . . Hackware . | . . . . . . . . . . Protection 10 | . . 1 1 . . 2 4 . 2 Artifact . | . . . . . . . . . . Weapon 27 | 2 3 3 2 1 2 3 2 6 3 Energy Gun 7 | 2 3 . . . . 1 . 1 . Energy Cannon . | . . . . . . . . . . Ballistic Gun 5 | . . 1 . . . . . 4 . Ballistic Cannon 7 | . . 1 . . 2 1 1 . 2 Launcher 5 | . . . 2 . . 1 . 1 1 Special Weapon . | . . . . . . . . . . Impact Weapon 1 | . . 1 . . . . . . . Slashing Weapon 1 | . . . . . . . 1 . . Piercing Weapon . | . . . . . . . . . . Special Melee Weapon 1 | . . . . 1 . . . . . Unidentified Prototypes 3 | . . 1 . . . . . 2 . Parts Lost 28 | . 1 . . . . 2 4 5 16 Power 4 | . 1 . . . . 1 . . 2 Propulsion 11 | . . . . . . . 1 3 7 Utility 6 | . . . . . . 1 1 1 3 Weapon 7 | . . . . . . . 2 1 4 Highest Loss Streak 14 | . 1 . . . . 1 3 2 14 To Critical Strikes . | . . . . . . . . . . Average Backups 17 | 3 11 17 19 18 18 17 18 19 19 Power . | . . 1 1 . . . 1 1 . Propulsion 3 | 2 3 4 5 4 4 4 3 3 2 Utility 7 | . 3 4 5 6 7 7 9 11 11 Weapon 4 | . 2 5 7 6 5 4 3 3 3 Tool/Special . | . . . . . . . . . . Unused Backups 29 | . 3 5 . . 2 1 6 1 11 Power . | . . . . . . . . . . Propulsion 5 | . 1 2 . . . . 1 . 1 Utility 18 | . 1 1 . . 2 1 5 1 7 Weapon 4 | . 1 2 . . . . . . 1 Tool/Special 2 | . . . . . . . . . 2 Average Slot Usage (%) 97 | . 94 98 100 97 100 98 97 99 90 Engine 5 | . 14 11 11 11 11 5 . . . Core 4 | . . . . . . 3 9 9 6 Treads 27 | . 28 30 33 33 33 26 26 21 27 Device 10 | . 9 11 11 11 11 9 5 15 14 Storage 9 | . 14 11 11 11 11 9 9 9 7 Processor 5 | . . . . . . 8 9 9 7 Protection 12 | . . 9 11 11 11 17 19 11 6 Energy Gun 5 | . 28 11 . . . 1 3 . . Ballistic Gun 3 | . . 4 11 11 1 . . 3 13 Ballistic Cannon 9 | . . 6 10 5 20 15 12 13 3 Peak Build Rating 43 | 6 12 19 21 21 22 36 37 34 43 Average Rating 26 | 5 9 16 20 20 20 31 33 30 37 On Entrance 20 | . 6 11 19 21 21 20 36 34 33 Avg Prop Armor Cover (%) 14 | . . 20 . . . 11 . 14 15 Naked Turns . | . . . . . . . . . . Heaviest Build 92 | 11 91 92 62 62 63 76 75 73 71 Greatest Support 94 | 40 46 69 69 69 69 69 67 68 94 Greatest Overweight (x) 5 | . 1 5 . . . 4 1 4 3 Average Overweight (x) . | . . 1 . . . 1 . 2 . Largest Inventory Capacity 25 | 8 25 25 20 20 20 20 20 20 20 Average Capacity 19 | 7 18 21 20 20 20 20 20 20 20 Most Carried 20 | 5 16 20 20 20 20 20 20 20 20 Average Carried 18 | 3 11 17 19 18 19 18 19 19 19 Final Capacity 25 | 8 25 20 20 20 20 20 20 20 20 Final Carried 20 | 5 15 20 19 20 20 19 20 20 12 Class Distribution -------------------- 92% | Mutant 4% | Skirmisher Dominant Class ---------------- Mutant | -10/Materials Mutant | -9/Materials Mutant | -9/Mines Mutant | -9/Exiles Mutant | -8/Mines Mutant | -8/Materials Mutant | -8/Garrison Mutant | -8/Materials Mutant | -7/Factory Resources | -11 -10 -9 -9 -9 -8 -8 -8 -8 -7 ----------- Run | Yrd Mat Mat Min Exi Min Mat Gar Mat Fac Matter Collected 4374 | 260 185 362 267 50 328 720 1075 717 410 Remotely 1296 | . . . . . . 387 230 345 334 Salvage Created 4395 | 100 521 560 315 123 248 609 850 767 302 Parts 265 | 3 22 35 30 4 18 41 45 44 23 Haulers Intercepted 9 | . 2 2 . . . 3 . 1 1 Recyclers Shooed 6 | . 1 2 . . . 1 . 2 . Parts Field Recycled . | . . . . . . . . . . Retrieved Matter . | . . . . . . . . . . Parts Self-Destructed . | . . . . . . . . . . Prevented . | . . . . . . . . . . Parts Restored . | . . . . . . . . . . Kills | -11 -10 -9 -9 -9 -8 -8 -8 -8 -7 ------- Run | Yrd Mat Mat Min Exi Min Mat Gar Mat Fac Combat Hostiles Destroyed 124 | . 10 11 14 . 10 19 32 19 9 Guns 28 | . 10 6 1 . 2 2 6 . 1 Cannons 49 | . . 4 5 . 6 5 13 14 2 AOE 46 | . . . 8 . 2 12 13 5 6 Classes Destroyed 16 | 1 5 3 . . . 3 2 1 1 Worker 10 | . 1 . 1 . . 5 . 1 2 Builder 7 | . . 2 . . . 2 . 2 1 Tunneler 5 | . . 1 2 . 2 . . . . Hauler 9 | . 2 2 . . . 3 . 1 1 Recycler 5 | 1 . 1 . . . 1 . 2 . Mechanic 1 | . . . . . . 1 . . . Operator 2 | . . . . . . 1 . 1 . Watcher 9 | . 2 3 . . . 3 . 1 . Swarmer 48 | . 3 4 8 . 6 8 15 . 4 Grunt 52 | . 7 5 4 . 5 6 13 12 . Brawler 2 | . . . . . . . . 2 . Protector 1 | . . . . . . . 1 . . Sentry 15 | . . 2 2 . . 4 2 5 . Demolisher 1 | . . . . . . . 1 . . Hunter 3 | . . . . . . 1 . . 2 Programmer 3 | . . . . . . . . . 3 Best Kill Streak 11 | 1 3 7 7 . 6 11 9 5 3 Combat Bots Only 9 | . 3 3 6 . 6 9 9 4 3 Max Kills in Single Turn 3 | 1 1 1 3 . 1 3 2 2 2 Gunslinging . | . . . . . . . . . . Exploded 3 | . . . 3 . 1 3 2 1 2 Melee . | . . . . . . . . . . Uniques/NPCs Destroyed . | . . . . . . . . . . Combat | -11 -10 -9 -9 -9 -8 -8 -8 -8 -7 -------- Run | Yrd Mat Mat Min Exi Min Mat Gar Mat Fac Hostile Shots Fired 811 | . 47 46 31 . 67 78 141 84 317 Missed 295 | . 17 6 10 . 21 25 50 32 134 Hits 516 | . 30 40 21 . 46 53 91 52 183 Projectile 516 | . 30 40 21 . 46 53 91 52 183 AOE 7 | . . . . . . . 7 . . Critical Strikes 16 | . 1 . 1 . . 2 3 4 5 Part Disruptions 1 | . . . . . . . . . 1 Damage Taken 6918 | . 365 316 198 . 569 668 1245 772 2785 Core 1076 | . 35 52 19 . 62 . 155 50 703 Absorbed by Shields 499 | . 17 122 79 . 129 38 23 91 . Ignored by Resistances 171 | . . . . . . 70 90 11 . Regen/Repaired (Parts) 303 | . 32 . . . . 255 . . 16 Core Remaining (%) 78 | 100 86 . . . 66 . . 62 . Volleys Fired 420 | 6 61 51 21 8 35 58 94 58 28 Largest 3 | 2 2 2 2 2 2 2 2 2 3 Hottest 100 | 90 100 100 56 56 66 70 100 70 88 Shots Fired 735 | 12 122 102 35 14 67 99 139 94 51 Gun 320 | 12 122 73 14 8 9 10 41 2 29 Cannon 355 | . . 29 14 6 55 76 78 81 16 Launcher 60 | . . . 7 . 3 13 20 11 6 Special . | . . . . . . . . . . Kinetic 442 | . . 54 28 14 64 76 78 83 45 Thermal 233 | 12 122 48 . . . 10 41 . . Explosive 60 | . . . 7 . 3 13 20 11 6 Electromagnetic . | . . . . . . . . . . Robot Hit Streak 20 | 2 13 11 9 16 20 9 9 9 6 Robot Miss Streak 8 | 2 2 3 2 . 8 8 7 7 3 Penetration Max . | . . . . . . . . . . Secondary Targets 2 | . 2 . . . . . . . . Max Gunslinging Chain 1 | . 1 . . . . . . . . Shots Hit Robots 468 | 6 79 70 21 19 38 67 81 67 20 Core Hits 338 | 2 30 23 18 6 19 71 61 73 35 Critical Kills . | . . . . . . . . . . Critical Parts Destroyed . | . . . . . . . . . . Critical Strikes 14 | . 5 6 . . 1 . 2 . . Burn 10 | . 5 4 . . . . 1 . . Blast 3 | . . 2 . . 1 . . . . Sever 1 | . . . . . . . 1 . . Melee Attacks 25 | . . . . 6 . . 19 . . Impact . | . . . . . . . . . . Slashing 19 | . . . . . . . 19 . . Piercing . | . . . . . . . . . . Sneak Attacks 6 | . . . . 6 . . . . . Combat Hostiles . | . . . . . . . . . . Follow-up Attacks . | . . . . . . . . . . Damage Inflicted 15082 | 64 968 1138 924 184 798 2872 3507 2491 2136 Guns 2792 | 64 968 712 115 102 119 141 373 15 183 Cannons 4463 | . . 416 214 82 596 1090 613 1221 231 Explosions 6720 | . . . 595 . 83 1641 1456 1248 1697 Melee 1065 | . . . . . . . 1065 . . Ramming 42 | . . 10 . . . . . 7 25 Kinetic 5318 | . . 737 329 184 715 1090 613 1236 414 Thermal 2283 | 64 968 391 . . . 141 373 . 346 Explosive 6374 | . . . 595 . 83 1641 1456 1248 1351 Electromagnetic . | . . . . . . . . . . Impact . | . . . . . . . . . . Slashing 1065 | . . . . . . . 1065 . . Piercing . | . . . . . . . . . . Highest Corruption 10 | . . . . . . . . . 10 Average Corruption 1 | . . . . . . . . . 1 Corruption Purged . | . . . . . . . . . . Corruption Blocked . | . . . . . . . . . . Effects 10 | . . . . . . . . . 10 Message Errors 5 | . . . . . . . . . 5 Matter Fused 1 | . . . . . . . . . 1 Heat Flow Errors 1 | . . . . . . . . . 1 Data Loss (minor) 1 | . . . . . . . . . 1 Data Loss (major) 1 | . . . . . . . . . 1 Weapon Failures 1 | . . . . . . . . . 1 Overload Shots . | . . . . . . . . . . Overflow Damage 404 | . . . 28 . 66 100 91 8 111 Projectiles 28 | . . . . . 16 12 . . . Explosions 336 | . . . 28 . 50 88 51 8 111 Melee 40 | . . . . . . . 40 . . Knockbacks 64 | . . 2 . 2 7 17 8 26 2 Impact . | . . . . . . . . . . Kinetic 57 | . . 2 . 2 6 16 8 22 1 Secondary 7 | . . . . . 1 1 . 4 1 Self-Inflicted Damage 261 | . . . 75 . 73 35 30 48 . Shots 9 | . . . 2 . 2 1 2 2 . Rammed 5 | . . . . . . . . 1 4 Targets Rammed 7 | . . 2 . . . . . 1 4 Kicked . | . . . . . . . . . . Crushed 2 | . . 2 . . . . . . . Highest Temperature 228 | 150 191 198 1 . 156 154 67 100 228 Average Temperature 48 | 69 57 74 1 . 53 48 28 21 43 Received Heat Transfer 1882 | . 155 126 24 . 162 259 420 412 324 Siege Activations . | . . . . . . . . . . Martial Activations . | . . . . . . . . . . Shielding Activations . | . . . . . . . . . . Robots Disrupted . | . . . . . . . . . . Combat Hostiles . | . . . . . . . . . . Robots Corrupted . | . . . . . . . . . . Combat Hostiles . | . . . . . . . . . . Parts Fried . | . . . . . . . . . . Impact Corruptions . | . . . . . . . . . . Robots Melted 1 | . . 1 . . . . . . . Combat Hostiles 1 | . . 1 . . . . . . . Parts Melted 9 | . 5 3 . . . . . 1 . Heat Transferred 6010 | 162 2971 1443 . . . 296 888 . 250 Parts Sabotaged . | . . . . . . . . . . Parts Stolen . | . . . . . . . . . . Parts Stripped . | . . . . . . . . . . Power Chain Reactions . | . . . . . . . . . . Alert | -11 -10 -9 -9 -9 -8 -8 -8 -8 -7 ------- Run | Yrd Mat Mat Min Exi Min Mat Gar Mat Fac Maximum Alert Level 5 | . . . 1 . 1 1 5 4 2 Low Security (%) 38 | 100 100 100 92 . 93 29 1 . . Level 1 18 | . . . 7 . 6 70 7 . 52 Level 2 8 | . . . . . . . 11 . 47 Level 3 5 | . . . . . . . 20 . . Level 4 19 | . . . . . . . 23 100 . Level 5 10 | . . . . . . . 36 . . High Security . | . . . . . . . . . . Max Security . | . . . . . . . . . . Peak Influence 2284 | 5 115 112 251 . 222 340 2284 1299 564 Initial 1113 | . . . 36 . . 83 191 1113 564 Average 600 | . 20 39 46 . 46 218 1262 1204 409 Influence Increases 5393 | 5 312 362 424 10 370 672 2153 683 402 Destroy 0b10 Robot/C 2640 | . 200 220 280 . 200 380 780 400 180 Destroy 0b10 Robot/NC 265 | 5 25 45 15 10 10 80 15 40 20 Destroy Leader 464 | . 58 50 40 . 30 102 30 114 40 Allied During Kill 18 | . . . . . . . 13 5 . Successful Hack 62 | . 13 14 . . . 14 7 . 14 Disable Machine 285 | . . . 30 . 60 30 45 15 105 Anti-Garrison Action 1100 | . . . . . . . 1100 . . Destroy Structure 319 | . 1 3 59 . 25 51 73 79 28 Lose Combat Pursuer 240 | . 15 30 . . 45 15 90 30 15 Influence Decreases 5009 | 5 312 267 275 254 156 592 163 1727 1258 Entered New Map 2384 | . . . 59 244 . 131 103 1171 676 Time Decay 2305 | 5 302 267 216 10 156 441 . 486 422 Lost Part 280 | . 10 . . . . 20 40 50 160 Lost Ally 40 | . . . . . . . 20 20 . Squads Dispatched 14 | . 2 2 . . . 2 . 5 3 Investigation 1 | . 1 . . . . . . . . Extermination 2 | . . . . . . . . . 2 Reinforcement 8 | . 1 2 . . . 2 . 2 1 Assault 3 | . . . . . . . . 3 . Garrison . | . . . . . . . . . . Intercept . | . . . . . . . . . . Searches Triggered . | . . . . . . . . . . Construction Impeded 2 | . . . . . . 2 . . . Haulers Reinforced . | . . . . . . . . . . Active Scanning Responses . | . . . . . . . . . . Cargo Convoy Interrupts 1 | . . . . . . . . . 1 Stealth | -11 -10 -9 -9 -9 -8 -8 -8 -8 -7 --------- Run | Yrd Mat Mat Min Exi Min Mat Gar Mat Fac Distress Signals 13 | . 3 4 . . . 2 . 4 . Communications Jammed 32 | . . . . . . . . 1 31 Distress Signals 32 | . . . . . . . . 1 31 Times Spotted 208 | . 24 22 14 . 13 33 41 40 21 Peak Tracking Total 13 | . 3 6 4 . 3 5 9 6 13 Tactical Retreats 11 | . 1 2 . . 2 1 3 1 1 Traps | -11 -10 -9 -9 -9 -8 -8 -8 -8 -7 ------- Run | Yrd Mat Mat Min Exi Min Mat Gar Mat Fac Traps Triggered 11 | . 2 . . . . 1 7 1 . Indirectly . | . . . . . . . . . . Trap Hack Attempts . | . . . . . . . . . . Triggered . | . . . . . . . . . . Disarmed . | . . . . . . . . . . Reprogrammed . | . . . . . . . . . . Reused . | . . . . . . . . . . Traps Extracted . | . . . . . . . . . . Installed . | . . . . . . . . . . Triggered . | . . . . . . . . . . Machines | -11 -10 -9 -9 -9 -8 -8 -8 -8 -7 ---------- Run | Yrd Mat Mat Min Exi Min Mat Gar Mat Fac Machines Disabled 24 | . . . 2 . 4 2 8 1 7 Max in Single Turn 4 | . . . 2 . 2 1 1 1 4 Garrison Relay 5 | . . . . . . . 5 . . Machines Repaired . | . . . . . . . . . . Machines Dismantled . | . . . . . . . . . . Machines Sabotaged . | . . . . . . . . . . Overloaded Fab Kills . | . . . . . . . . . . Hacking | -11 -10 -9 -9 -9 -8 -8 -8 -8 -7 --------- Run | Yrd Mat Mat Min Exi Min Mat Gar Mat Fac Machines Accessed 23 | . 6 2 . 1 . 5 2 3 4 Terminals 16 | . 5 . . . . 3 2 3 3 Fabricators . | . . . . . . . . . . Repair Stations 3 | . 1 . . . . 1 . . 1 Recycling Units 1 | . . 1 . . . . . . . Scanalyzers 1 | . . 1 . . . . . . . Garrison Access 1 | . . . . . . 1 . . . Total Hacks 79 | . 23 9 . 5 . 14 5 9 14 Successful 41 | . 13 6 . 5 . 9 1 2 5 Failed 38 | . 10 3 . . . 5 4 7 9 Catastrophic . | . . . . . . . . . . Database Lockouts . | . . . . . . . . . . Manual 39 | . 13 6 . . . 7 . 8 5 Terminals 47 | . 17 . . . . 8 5 9 8 Fabricators . | . . . . . . . . . . Repair Stations 17 | . 6 . . . . 5 . . 6 Recycling Units 6 | . . 6 . . . . . . . Scanalyzers 3 | . . 3 . . . . . . . Garrison Access 1 | . . . . . . 1 . . . Terminal Hacks 13 | . 3 . . 5 . 1 1 1 2 Record 5 | . . . . 5 . . . . . Prototype ID Bank 1 | . 1 . . . . . . . . Open Door 1 | . . . . . . . 1 . . Terminal Index 3 | . 1 . . . . 1 . . 1 Alert Level 3 | . 1 . . . . . . 1 1 Fabricator Hacks . | . . . . . . . . . . Repair Station Hacks 11 | . 4 . . . . 4 . . 3 Scan Component 7 | . 3 . . . . 2 . . 2 Repair 4 | . 1 . . . . 2 . . 1 Recycling Unit Hacks . | . . . . . . . . . . Scanalyzer 2 | . . 2 . . . . . . . Retrieve Study 2 | . . 2 . . . . . . . Garrison Access Hacks 1 | . . . . . . 1 . . . Unlock Access 1 | . . . . . . 1 . . . Unauthorized Hacks 14 | . 6 4 . . . 3 . 1 . Terminals 10 | . 6 . . . . 3 . 1 . Track 1 | . . . . . . 1 . . . Botnet 6 | . 4 . . . . 1 . 1 . Operators 1 | . 1 . . . . . . . . Skim 2 | . 1 . . . . 1 . . . Fabricators . | . . . . . . . . . . Repair Stations . | . . . . . . . . . . Recycling Units 4 | . . 4 . . . . . . . Monitor 1 | . . 1 . . . . . . . Reject 1 | . . 1 . . . . . . . Recyclers 1 | . . 1 . . . . . . . Mask 1 | . . 1 . . . . . . . Scanalyzers . | . . . . . . . . . . Garrison Access . | . . . . . . . . . . Data Cores Recovered 1 | . . . . . . 1 . . . Used . | . . . . . . . . . . Hacking Detections 18 | . 5 . . . . 5 2 3 3 Full Trace Events 3 | . 2 . . . . . 1 . . Feedback Events . | . . . . . . . . . . Feedback Blocked . | . . . . . . . . . . Robot Schematics Acquired . | . . . . . . . . . . Robots Built . | . . . . . . . . . . Authchips . | . . . . . . . . . . Time . | . . . . . . . . . . Total Robot Build Rating . | . . . . . . . . . . Part Schematics Acquired . | . . . . . . . . . . Parts Built . | . . . . . . . . . . Authchips . | . . . . . . . . . . Time . | . . . . . . . . . . Total Part Build Rating . | . . . . . . . . . . Part Studies Acquired 2 | . . 2 . . . . . . . Parts Repaired 4 | . 1 . . . . 2 . . 1 Time 138 | . 26 . . . . 76 . . 36 Parts Recycled . | . . . . . . . . . . Recycled Matter . | . . . . . . . . . . Retrieved Matter . | . . . . . . . . . . Retrieved Components . | . . . . . . . . . . Parts Scanalyzed . | . . . . . . . . . . Part Schematics Acquired . | . . . . . . . . . . Parts Damaged . | . . . . . . . . . . Bothacking | -11 -10 -9 -9 -9 -8 -8 -8 -8 -7 ------------ Run | Yrd Mat Mat Min Exi Min Mat Gar Mat Fac Used RIF Installer . | . . . . . . . . . . Robots Hacked . | . . . . . . . . . . Non-combat . | . . . . . . . . . . Combat . | . . . . . . . . . . Robot Hacks Applied . | . . . . . . . . . . Relay Couplers Released 24 | . . . . . . . 24 . . Machine Destruction 24 | . . . . . . . 24 . . Fabnet Peak Effective % . | . . . . . . . . . . Robots Rewired 4 | . . . . 4 . . . . . Allies Hacked . | . . . . . . . . . . Hacks Repelled . | . . . . . . . . . . Allies | -11 -10 -9 -9 -9 -8 -8 -8 -8 -7 -------- Run | Yrd Mat Mat Min Exi Min Mat Gar Mat Fac Total Allies 6 | . . . . 4 . . 2 . . Largest Group 4 | . . . . 4 2 . 2 1 . Highest-Rated Group 64 | . . . . 45 29 . 64 39 . Highest-Rated Ally 39 | . . . . 21 21 . 39 39 . Initial Warlord ECA Mod 7 | . . . . . . . . 7 6 Total Orders . | . . . . . . . . . . Ally Attacks 38 | . . . . . 7 . 26 5 . Total Damage 577 | . . . . . 109 . 426 42 . Kills 10 | . . . . . 1 . 8 1 . Allies Corrupted . | . . . . . . . . . . Allies Melted . | . . . . . . . . . . Intel | -11 -10 -9 -9 -9 -8 -8 -8 -8 -7 ------- Run | Yrd Mat Mat Min Exi Min Mat Gar Mat Fac Active Infowar (turns) 3256 | . . . . . 269 786 . 1218 983 Sensors 2907 | . . . . . . 735 . 1217 955 Seismic 320 | . . . . . 269 51 . . . Jamming 949 | . . . . . . . . 336 613 Robot Analysis Total . | . . . . . . . . . . Derelict Logs Recovered 1 | . . . 1 . . . . . . Drone Launches . | . . . . . . . . . . Drone Recoveries . | . . . . . . . . . . Exploration | -11 -10 -9 -9 -9 -8 -8 -8 -8 -7 ------------- Run | Yrd Mat Mat Min Exi Min Mat Gar Mat Fac Turns Passed 11070 | 112 1375 757 837 885 425 1416 2961 1263 1039 Spaces Moved 5050 | 53 586 326 475 508 189 527 1207 638 541 Core 6 | 6 . . . . . . . . . Treads 4438 | 47 586 237 475 508 189 467 1207 193 529 Legs . | . . . . . . . . . . Wheels 606 | . . 89 . . . 60 . 445 12 Hover . | . . . . . . . . . . Flight . | . . . . . . . . . . Fastest Speed 50 | 50 160 160 160 160 160 145 150 145 130 Average Speed 181 | 147 184 164 160 160 160 209 216 157 161 Slowest Speed 240 | 160 240 175 160 160 160 225 225 216 240 Overloaded Moves . | . . . . . . . . . . Propulsion Burnouts . | . . . . . . . . . . Robots Hopped . | . . . . . . . . . . Potential Cave-ins . | . . . . . . . . . . Cave-ins Triggered . | . . . . . . . . . . Exploration Rate (%) 50 | 5 82 32 68 88 59 41 75 41 16 Regions Visited 9 Branch Regions 3 Pre-discovered Areas 2 | . . . 1 1 . . . . . Known Exits Taken 2 | . . . . . . 1 . 1 . Unknown Exits Taken 6 | 1 1 1 1 1 1 . . . . Scrap Searched 2 | . . . 1 . 1 . . . . Spaces Dug 15 | . . . . . . 5 10 . . Terrain Destroyed 382 | . . 3 76 . 25 68 89 91 30 Melee . | . . . . . . . . . . Projectile 11 | . . 3 1 . 2 1 . 2 2 AOE 371 | . . . 75 . 23 67 89 89 28 Terrain Rammed . | . . . . . . . . . . Walls Destroyed . | . . . . . . . . . . Machines Disabled . | . . . . . . . . . . Actions | -11 -10 -9 -9 -9 -8 -8 -8 -8 -7 --------- Run | Yrd Mat Mat Min Exi Min Mat Gar Mat Fac Total 6192 | 72 758 450 514 564 243 735 1396 795 665 Wait 317 | 3 74 27 9 . 7 89 16 39 53 Move 5041 | 52 585 325 474 507 188 526 1206 637 541 Hop . | . . . . . . . . . . Pick Up 83 | 5 12 18 . 5 3 7 14 12 7 Fast Attach 26 | 6 3 2 . . . 7 . 6 2 Attach 34 | . 3 3 1 1 1 5 5 6 9 Detach 12 | . 4 3 . 1 . 2 1 1 . Swap 115 | . 7 5 8 5 6 29 20 23 12 Drop 75 | . 9 14 1 5 3 12 10 12 9 Fire 420 | 6 61 51 21 8 35 58 94 58 28 Melee 25 | . . . . 6 . . 19 . . Ram 1 | . . . . . . . . 1 . Kick . | . . . . . . . . . . Crush 6 | . . 2 . . . . . . 4 Escape Stasis 11 | . . . . . . . 11 . . Rewire 26 | . . . . 26 . . . . . Trap . | . . . . . . . . . . Miscellaneous . | . . . . . . . . . . Route ------- -11/Scrapyard -10/Materials (discovered 4 exits: *Mat x3 / [*Min]) -9/Materials -9/Mines (discovered 2 exits: *Mat / *Exi) -9/Exiles -8/Mines -8/Materials -8/Garrison (discovered 4 exits: *Mat x4) -8/Materials -7/Factory (discovered 3 exits: *Fac / *Sto / [*Low]) History --------- Turn | Location | Event 11 | -11/Scrapyard | Discovered new exit (range 15) 113 | -11/Scrapyard | Entered Materials 304 | -10/Materials | Build established: Mutant 431 | -10/Materials | Discovered new exit (range 4) 740 | -10/Materials | Discovered new exit (range 16) 906 | -10/Materials | Discovered new exit (range 16) 943 | -10/Materials | Discovered new exit (range 13) 1100 | -10/Materials | Repaired Med. Laser 1488 | -10/Materials | Entered another Materials area 1488 | -9/Materials | Evolved 2 slots: Propulsion x1, Utility x1 2001 | -9/Materials | Discovered new exit (range 15) 2245 | -9/Materials | Entered Mines 2254 | -9/Mines | Met a Derelict bent on vengeance 2528 | -9/Mines | Learned location of Storage (-7) 3009 | -9/Mines | Discovered new exit (range 14) 3074 | -9/Mines | Deemed a non-threat by the Exiles lab entrance 3076 | -9/Mines | Discovered new exit (range 5) 3082 | -9/Mines | Entered Exiles 3082 | -9/Exiles | Found Exiles lab destroyed 3602 | -9/Exiles | Learned location of Zion (-6) 3865 | -9/Exiles | Discovered new exit (range 14) 3967 | -9/Exiles | Entered Mines 3967 | -8/Mines | Accompanied by 4 allies 4009 | -8/Mines | Lost 4 allies 4381 | -8/Mines | Discovered new exit (range 6) 4392 | -8/Mines | Entered Materials 4392 | -8/Materials | Evolved 2 slots: Utility x2 4837 | -8/Materials | Destroyed 9 combat bots 5435 | -8/Materials | Repaired Hrd. Medium Armor Plating 5474 | -8/Materials | Repaired Reactive Plating 5661 | -8/Materials | Identified exit to Garrison 5808 | -8/Materials | Entered Garrison 5858 | -8/Garrison | Triggered checkpoint 6076 | -8/Garrison | Garrison Relay disabled 6194 | -8/Garrison | Triggered checkpoint 6277 | -8/Garrison | Destroyed 9 combat bots 6340 | -8/Garrison | Discovered new exit (range 9) 6379 | -8/Garrison | Triggered checkpoint 6411 | -8/Garrison | Garrison Relay disabled 6534 | -8/Garrison | Triggered checkpoint 6568 | -8/Garrison | Discovered new exit (range 5) 6590 | -8/Garrison | Identified exit to Materials 6739 | -8/Garrison | Triggered checkpoint 6802 | -8/Garrison | Triggered checkpoint 6846 | -8/Garrison | Lost 3 parts (1u2w) 6903 | -8/Garrison | Discovered exit to Materials (range 10) 6954 | -8/Garrison | Triggered checkpoint 7008 | -8/Garrison | Triggered checkpoint 7037 | -8/Garrison | Garrison Relay disabled 7282 | -8/Garrison | Discovered exit to Materials (range 13) 7328 | -8/Garrison | Rescued a captive Derelict 7329 | -8/Garrison | Rescued a captive Derelict 7430 | -8/Garrison | Triggered checkpoint 7471 | -8/Garrison | Garrison Relay disabled 7750 | -8/Garrison | Garrison Relay disabled 8769 | -8/Garrison | Entered Materials 8769 | -8/Materials | Accompanied by 1 ally 9169 | -8/Materials | First assault squad dispatched 9981 | -8/Materials | Discovered new exit (range 15) 10016 | -8/Materials | Identified exit to Factory 10032 | -8/Materials | Entered Factory 10032 | -7/Factory | Evolved 2 slots: Propulsion x1, Weapon x1 10254 | -7/Factory | Discovered new exit (range 16) 10386 | -7/Factory | Discovered new exit (range 8) 10397 | -7/Factory | Identified exit to Storage 10629 | -7/Factory | Discovered new exit (range 13) 10656 | -7/Factory | Identified exit to Factory 10781 | -7/Factory | Build established: Skirmisher 10890 | -7/Factory | Repaired Broken Com. Wheel 10980 | -7/Factory | Cargo convoy interrupted 11019 | -7/Factory | Core integrity fell below 50% 11029 | -7/Factory | Core integrity fell below 20% 11055 | -7/Factory | Lost 14 parts (2p5n3u4w) 11070 | -7/Factory | System corruption reached 10% 11071 | -7/Factory | Destroyed by X-57 Shotgunner with High-powered Shotgun Last Messages --------------- 11028_ Slug penetrates Wall. 11028_ U-05 Engineer lays Concrete. 11028_ Slug penetrates Wall. 11031_ TOV1Q96#CG,SAAEB 11057_ Imp. Treads+ destroyed. 11058_ Subcomponent Replicator disabled. 11060_ P-60 Hacker destroyed. 11064_ Acquired 6 matter. 11064_ Acquired 39 matter. 11064_ Acquired 104 matter. 11064_ G-47 Trooper knocked back. 11065_ Acquired 2 matter. 11065_ Lgt. Treads destroyed. 11066_ System corrupted: Adv. Assault Cannon jammed. 11069_ Acquired 3 matter. 11070_ System corrupted: Matter fused (-6). 11071_ Acquired 1 matter. 11071_ P-60 Hacker resets X-57 Shotgunner, system corruption cleaned. Map ----- +----------------------------------------------------+ | ?????????????????????????????????????????????????? | | ?????????????????????????????????????????????????? | | ?????????????????????????????????????????????????? | | ?????????????????????????????????????????????????? | | ?????????????????????????????????????????????????? | | ?????????????????????????????????????????????????? | | ?????????????????????????????????????????????????? | | ?????????????????????????????????????????????????? | | ?????????????????????????????????????????????????? | | ?????????????????????????????????????????????????? | | ?????????????????????????????????????????????????? | | ?????????????????????????????????????????????????? | | ?????????????????????????????????????????????????? | | ?????????????????????????????????????????????????? | | ?????????????????????????????????????????????????? | | ??????????????? ?????????????????????????????????? | | ??????????????" ????????????????????????????????? | | ??????????????" ????????????????????????????????? | | ?????????"""""" ????????????????????????????????? | | ?????????"""""" ????????????????????????????????? | | ????????? #???????????????????????????????? | | ?????????"" #???????????????????????????????? | | ?????????"" ###############?????????????????? | | ?????????"" ## g #?????????????????? | | ?????????? ## pgg #?????????????????? | | ??????????? ## h x!@ #?????????????????? | | ????????""""""" ##p h " " #?????????????????? | | ????????""""""" + """"" #?????????????????? | | ??????? """"""" # """"" #?????????????????? | | ?????# """"""" + #?????????????????? | | ?????# # """ #?????????????????? | | ?????# # """"" #?????????????????? | | ?????###+###### ### """"" #?????????????????? | | ??????????????# #?# #?????????????????? | | ??????????????# #?# #?????????????????? | | ??????????????# #?##############?????????????????? | | ??????????????#+############?????????????????????? | | ??????????????# #?????????????????????? | | ??????????????# #??????#########??????? | | ??????????????# [ #??????# #??????? | | ??????????????#%[! #??????# """#??????? | | ??????????????#[[ #??????# R"#??????? | | ??????????????# #??????# """#??????? | | ??????????????# #??????# #??????? | | ??????????????# #??????# #??????? | | ??????????????# #??????# #??????? | | ??????????????# #??????# #??????? | | ??????????????# #??????# #??????? | | ??????????????# #??????# """" #??????? | | ????????????#####+# # ######### """" #??????? | +----------------------------------------------------+ Best States ------------- Heat Dissipation 50 Energy Generation 14 Energy Capacity 250 Matter Stores 300 Matter Capacity 300 Sight Range 16 Robot Scan Range 15 Terrain Scan Density 10 Jamming Range 14 Armor Coverage 450 Resistance: KI 20 Utility Shielding 33 Evasion (%) 40 Recoil Reduction 4 Item Schematics ----------------- None Robot Schematics ------------------ None Fabricated ------------ Nothing Repaired ---------- Med. Laser | 54% | -10/Materials Hrd. Medium Armor Plating | 24% | -8/Materials Reactive Plating | 59% | -8/Materials Com. Wheel | 46% | -7/Factory | Broken Studied --------- Imp. Light Cannon | -9/Materials | Hacked Imp. Treads | -9/Materials | Hacked Alien Tech Used ----------------- None Achievements -------------- Total Silence Challenges ------------ None Game ------ Seed DisposableElectronBasin Manual? 0 Play Time 01:22:43 Cumulative 42.6 hours Start 2025.11.10 @ 22:06:46 End 2025.11.11 @ 02:08:58 Sessions 2 Manual Loads 0 Difficulty Rogue Special Mode None Game No. 70 Rogue 70 Adventurer 0 Explorer 0 Win Type - Total 0 Types 0/0/0/0/0/0/0/0/0/0 Lore% 23 Gallery% 32 Achievement% 24 Wizard Run 0 Options --------- Layout 0 ASCII 1 Keyboard 1 Movement Numpad Keybinds 0 Fullscreen 1 Font 18/VGA_Max Map View 76x50 Zoom Use 0% Tactical HUD 1 Map Filters NONE Filters NONE Steam 1 RUN: 84c4fd52-82b2-41d4-bd9b-1a68597c8f29